bitfinex-derivatives/quotes_SOLF0:USTF0_20251126
["timestamp","ask_amount","ask_price","bid_price","bid_amount"]
[1764129162822,4.92620262,138.28,138.21,2.97]
[1764129163022,1.77,138.28,138.22,9.4842]
[1764129163726,0.0464206,138.26,138.24,0.05451048]
[1764129164025,0.0464206,138.26,138.24,3.02451048]
[1764129165327,0.0464206,138.26,138.18,2.97]
[1764129165328,1.77,138.25,138.18,2.97]
[1764129166319,0.04820431,138.23,138.2,3.02497705]
[1764129168013,1.82820431,138.23,138.2,3.02497705]
[1764129170126,0.04820431,138.23,138.2,3.02497705]
[1764129170529,0.04820431,138.23,138.2,9.54017705]
[1764129170836,0.04820431,138.23,138.21,3.07]
[1764129174528,1.83,138.28,138.23,3.07]
[1764129174920,4.15083525,138.28,138.23,3.07]
[1764129175321,1.83,138.27,138.23,3.07]
[1764129175626,1.87749697,138.27,138.24,3.12166698]
[1764129177126,1.87749697,138.27,138.24,0.05166698]
[1764129177331,1.83,138.25,138.24,0.05166698]
[1764129179629,4.19833222,138.27,138.24,0.05166698]
[1764129180132,1.83,138.26,138.24,0.05166698]
[1764129181629,1.81,138.24,138.19,9.4654]
[1764129182325,4.13083525,138.23,138.17,9.4666]
[1764129182526,1.81,138.22,138.17,2.95]
[1764129182729,0.05005516,138.21,138.19,3.0036309]
[1764129182923,1.86005516,138.21,138.19,0.0536309]
[1764129186336,0.05005516,138.21,138.19,3.0036309]
[1764129190931,0.05005516,138.21,138.2,2.95]
[1764129191231,1.81,138.26,138.2,2.95]
[1764129191532,7.06552043,138.26,138.21,2.95]
[1764129191732,1.81,138.26,138.21,2.95]
[1764129192240,0.04874238,138.25,138.23,2.95]
[1764129192734,1.85874238,138.25,138.22,0.05448211]
[1764129192935,1.85874238,138.25,138.22,3.00448211]
[1764129194335,7.11426281,138.25,138.22,3.00448211]
[1764129194537,1.85874238,138.25,138.22,3.00448211]
[1764129194836,7.11426281,138.25,138.22,3.00448211]
[1764129195037,1.85874238,138.25,138.22,3.00448211]
[1764129195235,7.11426281,138.25,138.22,3.00448211]
[1764129195437,1.85874238,138.25,138.22,3.00448211]
[1764129195636,7.11426281,138.25,138.22,3.00448211]
[1764129195837,1.85874238,138.25,138.22,3.00448211]
[1764129196138,7.11426281,138.25,138.22,3.00448211]
[1764129196339,1.85874238,138.25,138.22,3.00448211]
[1764129196538,4.13083525,138.24,138.22,0.05448211]
[1764129196729,1.81,138.23,138.22,0.05448211]
[1764129198844,3.22,138.22,138.12,1.7043781]
[1764129199039,3.22,138.22,138.06,40.28317212]
[1764129199040,1.78,138.12,138.06,3.0]
[1764129199246,1.78,138.1,138.06,3.0]
[1764129199745,5.31660792,138.13,138.08,3.0]
[1764129199746,0.0482828,138.09,138.08,3.0]
[1764129199948,0.05334963,138.1,138.08,3.0]
[1764129200141,5.31660792,138.15,138.08,3.0]
[1764129200345,1.78,138.15,138.08,3.0]
[1764129201041,0.05555963,138.13,138.1,3.0517686]
[1764129212840,0.05555963,138.13,138.11,3.0]
[1764129213350,0.05555963,138.13,138.11,9.5194]
[1764129213551,0.05555963,138.13,138.12,3.0]
[1764129214053,1.83,138.21,138.13,3.0]
[1764129214953,0.05123741,138.18,138.16,3.04551192]
[1764129216656,1.88123741,138.18,138.16,0.04551192]
[1764129222064,1.88123741,138.18,138.16,3.04551192]
[1764129224860,0.05123741,138.18,138.16,3.04551192]
[1764129230857,4.1542202,138.17,138.16,0.04551192]
[1764129231063,1.83,138.17,138.16,0.04551192]
[1764129232073,0.05123741,138.18,138.16,0.04551192]
[1764129232365,0.05123741,138.18,138.16,3.16551192]
[1764129249073,0.05123741,138.18,138.16,9.68261192]
[1764129249286,0.05123741,138.18,138.17,3.09]
[1764129256285,5.01244179,138.18,138.17,3.09]
[1764129259786,5.01244179,138.18,138.11,101.4124]
[1764129259787,6.5184,138.14,138.04,17.90363205]
[1764129259991,101.4329,138.09,138.01,3.07]
[1764129260187,110.03666082,138.08,138.01,3.07]
[1764129260386,10.29650267,138.07,138.01,3.07]
[1764129260592,106.41935248,138.06,138.01,3.07]
[1764129260789,4.99848313,138.05,138.02,0.04611815]
[1764129260989,0.04721527,138.05,138.02,0.04611815]
[1764129261192,0.04721527,138.05,138.02,3.11611815]
[1764129266184,150.44,138.04,137.97,6.14182865]
[1764129266490,149.0,138.04,137.98,3.07]
[1764129267290,0.04827888,138.02,138.01,3.07]
[1764129271403,6.5218,138.07,138.01,3.07]
[1764129271997,6.5207,138.09,138.01,3.07]
[1764129272411,0.05132901,138.06,138.05,3.07]
[1764129272609,0.04636321,138.07,138.05,3.07]
[1764129272811,0.05191309,138.07,138.05,3.12166815]
[1764129276502,0.05191309,138.07,138.05,0.05166815]
[1764129277112,108.01911309,138.07,138.05,0.05166815]
[1764129278015,6.57361309,138.07,138.05,0.05166815]
[1764129281017,5.69184317,138.06,138.05,0.05166815]
[1764129285521,5.69184317,138.06,137.97,3.07182865]
[1764129285727,5.69184317,138.06,137.9,3.07]
[1764129285728,101.5209,137.97,137.9,3.07]
[1764129285923,101.538,137.95,137.9,3.07]
[1764129286126,5.69184317,137.94,137.9,3.07]
[1764129286326,3.35893402,137.97,137.9,3.07]
[1764129286531,0.05135623,137.95,137.92,0.05179547]
[1764129286828,5.68370867,137.94,137.92,0.05179547]
[1764129287130,0.05135623,137.95,137.92,0.05179547]
[1764129287322,5.68047138,137.94,137.92,0.05179547]
[1764129287525,0.05135623,137.95,137.92,0.05179547]
[1764129287826,0.05135623,137.95,137.92,3.20179547]
[1764129288031,5.68049501,137.94,137.92,3.20179547]
[1764129288226,0.05135623,137.95,137.92,3.20179547]
[1764129292936,5.67782902,137.97,137.92,3.20179547]
[1764129293136,3.35893402,138.01,137.92,3.15]
[1764129293338,5.67940136,138.0,137.92,3.15]
[1764129293533,5.67940136,137.99,137.92,3.15]
[1764129293739,5.67940136,137.98,137.92,3.15]
[1764129293944,0.04628774,137.96,137.94,3.20211129]
[1764129294144,0.04818841,137.96,137.94,3.20211129]
[1764129299343,2.15270087,138.0,137.94,3.20211129]
[1764129299344,6.524,138.02,137.94,3.20211129]
[1764129299538,2.15270087,138.0,137.94,3.20211129]
[1764129299744,5.68269194,137.99,137.94,3.20211129]
[1764129300043,5.68269194,137.98,137.94,3.20211129]
[1764129300246,5.68269194,137.97,137.94,3.20211129]
[1764129300449,5.68269194,137.96,137.94,3.20211129]
[1764129300647,0.04768858,137.97,137.94,3.20211129]
[1764129300850,5.68695899,137.96,137.94,3.20211129]
[1764129301049,0.04768858,137.97,137.94,3.20211129]
[1764129301251,5.67525473,137.96,137.94,3.20211129]
[1764129301551,7.44130973,138.05,137.97,2.94]
[1764129301749,2.15270087,138.05,137.97,2.94]
[1764129301950,2.15270087,138.05,138.0,2.94]
[1764129302451,0.05185731,138.04,138.02,2.94]
[1764129303547,0.05185731,138.04,138.02,9.4634]
[1764129303758,2.15270087,138.1,138.03,2.94]
[1764129303937,5.32348982,138.09,138.03,2.94]
[1764129304137,5.32348982,138.08,138.03,2.94]
[1764129304341,5.33147405,138.07,138.03,2.94]
[1764129304654,0.05213783,138.06,138.04,2.99043433]
[1764129306549,0.05213783,138.06,138.04,0.05043433]
[1764129306753,0.05213783,138.06,138.04,2.99043433]
[1764129315255,0.05213783,138.06,138.04,0.05043433]
[1764129315454,0.05213783,138.06,138.04,2.99043433]
[1764129318864,6.5197,138.11,138.04,2.99043433]
[1764129319157,10.29465813,138.12,138.04,2.99043433]
[1764129319457,5.33238214,138.12,138.04,2.99043433]
[1764129319660,4.96227599,138.13,138.07,3.03]
[1764129319968,0.05429225,138.11,138.1,3.03]
[1764129320157,0.04663026,138.12,138.1,3.03]
[1764129320352,6.56593026,138.12,138.1,3.03]
[1764129322366,0.04663026,138.12,138.1,3.03]
[1764129323567,0.04663026,138.12,138.09,8.71976358]
[1764129323568,101.3504,138.2,138.12,3.03]
[1764129323972,6.5161,138.19,138.12,3.03]
[1764129324264,2.15270087,138.21,138.13,3.03]
[1764129324463,0.05447999,138.18,138.16,0.05502869]
[1764129324770,0.05447999,138.18,138.16,3.08502869]
[1764129327163,0.05447999,138.18,138.16,0.05502869]
[1764129327359,2.15270087,138.17,138.16,0.05502869]
[1764129329270,6.57097999,138.18,138.16,0.05502869]
[1764129329463,6.57097999,138.18,138.16,3.08502869]
[1764129329657,0.05447999,138.18,138.16,3.08502869]
[1764129330357,6.57107999,138.18,138.16,3.08502869]
[1764129330762,2.15270087,138.17,138.16,0.05502869]
[1764129331068,103.52850087,138.17,138.12,3.03]
[1764129331268,2.15270087,138.14,138.08,3.03]
[1764129331466,2.15270087,138.1,138.08,3.03]
[1764129331859,2.20773673,138.1,138.08,3.08305983]
[1764129332769,0.05503586,138.1,138.08,3.08305983]
[1764129334264,6.57523586,138.1,138.08,3.08305983]
[1764129339072,0.05503586,138.1,138.08,3.08305983]
[1764129345868,0.05503586,138.1,138.08,0.05305983]
[1764129346375,0.05503586,138.1,138.08,3.08305983]
[1764129354787,0.05503586,138.1,138.08,0.05305983]
[1764129359389,6.57513586,138.1,138.08,0.05305983]
[1764129362190,0.05503586,138.1,138.08,3.15305983]
[1764129363481,5.01956369,138.1,138.08,3.15305983]
[1764129364878,4.96548325,138.09,138.08,0.05305983]
[1764129365979,4.96548325,138.09,138.08,3.15305983]
[1764129366192,0.05503586,138.1,138.08,3.15305983]
[1764129367094,5.01943932,138.1,138.08,3.15305983]
[1764129367293,0.05503586,138.1,138.08,3.15305983]
[1764129367493,5.01910351,138.1,138.08,3.15305983]
[1764129367690,0.05503586,138.1,138.08,3.15305983]
[1764129371994,8.32494818,138.09,138.04,3.1]
[1764129372196,10.28612742,138.08,138.04,3.1]
[1764129372388,4.96610267,138.07,138.04,3.1]
[1764129372589,5.32002475,138.08,138.04,3.1]
[1764129372788,4.96984886,138.07,138.04,3.1]
[1764129372984,5.32002475,138.08,138.04,3.1]
[1764129373192,5.02331281,138.07,138.05,3.14764186]
[1764129373397,0.05346395,138.07,138.05,3.14764186]
[1764129375091,10.31274851,138.06,138.05,0.04764186]
[1764129375496,10.31274851,138.06,138.02,3.1]
[1764129375497,10.31274851,138.06,137.99,3.1]
[1764129375695,10.31274851,138.05,137.99,3.1]
[1764129375896,10.31274851,138.04,137.99,3.1]
[1764129376092,4.96948593,138.03,137.99,3.1]
[1764129376393,5.34326258,138.05,137.99,3.1]
[1764129376599,0.05531119,138.03,138.01,3.14771961]
[1764129378193,5.01749389,138.03,138.01,3.14771961]
[1764129378395,0.05531119,138.03,138.01,3.14771961]
[1764129379995,4.95985745,138.06,138.01,3.14771961]
[1764129380197,4.95985745,138.07,138.01,3.14771961]
[1764129380394,4.9583519,138.08,138.01,3.14771961]
[1764129380904,0.04820608,138.06,138.01,3.14771961]
[1764129381298,0.04820608,138.06,138.02,2.96]
[1764129381900,4.9583519,138.09,138.03,2.96]
[1764129382095,10.30161448,138.13,138.03,2.96]
[1764129382396,4.9583519,138.12,138.04,2.96]
[1764129382596,11.4772519,138.13,138.06,2.96]
[1764129382792,0.04746851,138.11,138.09,2.96]
[1764129385998,5.34326258,138.15,138.09,2.96]
[1764129386203,10.30202324,138.17,138.09,2.96]
[1764129386405,4.95876066,138.16,138.09,2.96]
[1764129386702,4.95876066,138.15,138.09,2.96]
[1764129386903,4.95876066,138.16,138.09,2.96]
[1764129387105,0.04635144,138.14,138.11,3.00942636]
[1764129391303,4.95828113,138.13,138.11,0.04942636]
[1764129392199,4.95828113,138.13,138.11,3.00942636]
[1764129392405,0.04635144,138.14,138.11,3.00942636]
[1764129392804,4.95816693,138.13,138.11,3.00942636]
[1764129393602,5.00451837,138.14,138.11,3.00942636]
[1764129394000,11.89987809,138.14,138.11,0.04942636]
[1764129394198,4.956373,138.13,138.11,0.04942636]
[1764129398207,5.00272444,138.14,138.11,3.00942636]
[1764129398410,0.04635144,138.14,138.11,3.00942636]
[1764129403113,0.04635144,138.14,138.11,0.04942636]
[1764129403705,5.00272444,138.14,138.11,0.04942636]
[1764129404013,6.5188,138.13,138.11,0.04942636]
[1764129408909,6.5188,138.13,138.11,3.07942636]
[1764129409513,6.5188,138.13,138.11,0.04942636]
[1764129411111,6.5188,138.13,138.11,3.07942636]
[1764129424432,0.04635144,138.14,138.11,3.07942636]
[1764129425537,2.14822996,138.2,138.12,3.06]
[1764129425745,2.14822996,138.16,138.12,3.06]
[1764129425936,4.98536871,138.15,138.12,3.06]
[1764129426134,7.47277834,138.16,138.12,3.06]
[1764129426331,4.98465393,138.15,138.13,0.05189251]
[1764129426535,0.0531213,138.15,138.14,3.06]
[1764129426834,5.04134585,138.15,138.14,3.06]
[1764129431037,0.0531213,138.15,138.14,3.06]
[1764129431945,5.02626827,138.15,138.14,3.06]
[1764129432345,0.0531213,138.15,138.14,3.06]
[1764129433849,0.0531213,138.15,138.13,0.05189251]
[1764129436351,7.12030081,138.14,138.13,0.05189251]
[1764129436553,12.44154262,138.14,138.07,3.06]
[1764129436851,2.14822996,138.12,138.07,3.06]
[1764129437150,10.29234326,138.11,138.07,3.06]
[1764129437352,7.4685297,138.14,138.07,3.06]
[1764129437550,10.2918573,138.13,138.07,3.06]
[1764129437743,10.34615874,138.12,138.09,2.88726949]
[1764129437938,4.97155756,138.11,138.09,2.88726949]
[1764129438154,5.37460118,138.12,138.09,2.88726949]
[1764129438455,4.97144753,138.11,138.09,2.88726949]
[1764129438750,5.37460118,138.12,138.09,2.88726949]
[1764129438943,4.97126308,138.11,138.09,2.88726949]
[1764129439144,5.37460118,138.12,138.09,2.88726949]
[1764129439343,0.05430144,138.12,138.09,2.88726949]
[1764129439855,7.11801671,138.11,138.09,0.04726949]
[1764129440046,2.14822996,138.11,138.09,0.04726949]
[1764129441245,8.7218314,138.12,138.09,0.04726949]
[1764129441540,4.96919478,138.11,138.09,0.04726949]
[1764129441738,14.03435542,138.12,138.09,2.88726949]
[1764129441939,4.96919478,138.11,138.09,2.88726949]
[1764129442144,8.7218314,138.12,138.09,2.88726949]
[1764129442454,6.57360144,138.12,138.09,2.88726949]
[1764129442655,8.7218314,138.12,138.09,0.04726949]
[1764129442849,4.96919521,138.11,138.09,0.04726949]
[1764129443151,8.7218314,138.12,138.09,2.88726949]
[1764129443353,4.96894535,138.11,138.09,2.88726949]
[1764129443556,8.7218314,138.12,138.09,2.88726949]
[1764129443747,4.96894564,138.11,138.09,2.88726949]
[1764129443946,8.7218314,138.12,138.09,2.88726949]
[1764129444148,4.96894564,138.11,138.09,2.88726949]
[1764129444342,14.03376123,138.12,138.09,2.88726949]
[1764129444560,4.96854695,138.11,138.09,2.88726949]
[1764129444757,14.03376123,138.12,138.09,2.88726949]
[1764129444948,4.96849786,138.11,138.09,2.88726949]
[1764129445150,0.05430144,138.12,138.09,2.88726949]
[1764129446346,5.31291768,138.16,138.11,2.84]
[1764129446550,6.5164,138.18,138.11,2.84]
[1764129446551,10.28276706,138.17,138.11,2.84]
[1764129446753,6.5164,138.18,138.11,2.84]
[1764129447254,0.04870974,138.16,138.13,0.04591687]
[1764129447458,10.28186094,138.2,138.14,2.84]
[1764129447757,4.96838426,138.19,138.15,2.84]
[1764129447952,5.31347668,138.21,138.15,2.84]
[1764129448157,10.28203236,138.2,138.15,2.84]
[1764129448449,4.96855568,138.19,138.15,2.84]
[1764129448657,0.04932345,138.19,138.17,2.84]
[1764129449155,0.04932345,138.19,138.16,2.88858866]
[1764129450354,0.04932345,138.19,138.16,0.04858866]
[1764129451761,0.04932345,138.19,138.16,2.88858866]
[1764129452056,2.19755341,138.19,138.16,0.04858866]
[1764129452447,4.96255627,138.18,138.16,0.04858866]
[1764129452651,2.19755341,138.19,138.16,0.04858866]
[1764129452847,4.96273212,138.18,138.16,0.04858866]
[1764129454657,2.14822996,138.17,138.16,0.04858866]
[1764129454954,7.10994725,138.17,138.1,2.84]
[1764129455155,4.96171729,138.16,138.1,2.84]
[1764129455355,2.14822996,138.17,138.1,2.84]
[1764129455555,4.96222446,138.16,138.1,2.84]
[1764129455752,4.96222446,138.16,138.12,0.04849913]
[1764129455946,0.05524916,138.14,138.13,2.84]
[1764129459162,4.9656878,138.18,138.13,2.84]
[1764129459564,11.82947668,138.19,138.13,2.84]
[1764129459766,4.96569071,138.18,138.13,2.84]
[1764129460266,0.04887432,138.17,138.13,2.84]
[1764129462255,6.56577432,138.17,138.13,2.84]
[1764129465473,0.04887432,138.17,138.13,2.84]
[1764129472076,0.04887432,138.17,138.14,2.99]
[1764129473680,0.04887432,138.17,138.14,9.508]
[1764129473975,0.04887432,138.17,138.15,2.99]
[1764129482081,6.56577432,138.17,138.15,2.99]
[1764129482883,6.5178,138.15,138.12,3.10849913]
[1764129490095,6.56567432,138.17,138.12,3.10849913]
[1764129493403,0.04887432,138.17,138.12,3.10849913]
[1764129493602,0.04887432,138.17,138.15,3.06]
[1764129499711,0.04887432,138.17,138.15,34.4375]
[1764129499904,0.04887432,138.17,138.16,2.95]
[1764129500104,6.5155,138.2,138.16,2.95]
[1764129501311,0.04633379,138.19,138.16,2.95]
[1764129502102,6.56223379,138.19,138.16,2.95]
[1764129503305,6.56223379,138.19,138.15,0.05534559]
[1764129503306,6.5169,138.17,138.15,0.05534559]
[1764129504014,6.5169,138.17,138.15,3.00534559]
[1764129504609,6.5169,138.17,138.15,0.05534559]
[1764129506110,11.83127728,138.17,138.15,0.05534559]
[1764129506417,6.5169,138.17,138.15,0.05534559]
[1764129506615,11.83127728,138.17,138.15,0.05534559]
[1764129506818,6.5169,138.17,138.15,0.05534559]
[1764129507014,11.83127728,138.17,138.15,0.05534559]
[1764129507214,6.5169,138.17,138.15,0.05534559]
[1764129507417,11.83127728,138.17,138.15,0.05534559]
[1764129507718,6.5169,138.17,138.15,0.05534559]
[1764129508018,11.83127728,138.17,138.15,0.05534559]
[1764129508208,6.5169,138.17,138.15,0.05534559]
[1764129508409,11.83127728,138.17,138.15,0.05534559]
[1764129508609,6.5169,138.17,138.15,0.05534559]
[1764129508819,6.56243379,138.19,138.15,3.00534559]
[1764129510119,0.04633379,138.19,138.15,3.00534559]
[1764129511121,5.31441054,138.18,138.15,0.05534559]
[1764129511319,5.31441054,138.18,138.15,3.00534559]
[1764129511520,0.04633379,138.19,138.15,3.00534559]
[1764129512619,5.31485778,138.18,138.15,3.00534559]
[1764129512917,0.04633379,138.19,138.15,3.00534559]
[1764129513506,5.31488351,138.18,138.15,3.00534559]
[1764129513710,0.04633379,138.19,138.15,3.00534559]
[1764129513922,5.31484682,138.18,138.15,3.00534559]
[1764129514114,0.04633379,138.19,138.15,3.00534559]
[1764129514310,5.3146284,138.18,138.15,3.00534559]
[1764129514508,6.56223379,138.19,138.15,3.00534559]
[1764129514713,5.31477726,138.18,138.15,3.00534559]
[1764129515024,6.5164,138.18,138.15,0.05534559]
[1764129516316,11.83122333,138.17,138.15,0.05534559]
[1764129516517,6.5169,138.17,138.15,0.05534559]
[1764129518125,0.04633379,138.19,138.15,0.05534559]
[1764129518328,5.31403971,138.18,138.15,0.05534559]
[1764129518525,5.31403971,138.17,138.15,0.05534559]
[1764129518725,5.31403971,138.18,138.15,0.05534559]
[1764129518928,5.31403971,138.17,138.15,0.05534559]
[1764129519125,5.31403971,138.18,138.15,0.05534559]
[1764129519328,5.31403971,138.17,138.15,0.05534559]
[1764129520724,6.5168,138.17,138.15,0.05534559]
[1764129531738,6.5168,138.17,138.1,9.5699]
[1764129531739,6.5179,138.15,138.1,9.5699]
[1764129531939,6.5179,138.15,138.11,3.05]
[1764129532938,0.04859269,138.14,138.12,0.04665353]
[1764129534133,0.04859269,138.14,138.12,3.09665353]
[1764129536440,0.04859269,138.14,138.12,9.61565353]
[1764129536738,0.04859269,138.14,138.13,3.05]
[1764129537338,0.04859269,138.14,138.12,9.61565353]
[1764129541642,0.04859269,138.14,138.13,3.05]
[1764129544357,0.04859269,138.14,138.12,2.97665353]
[1764129545056,0.04859269,138.14,138.13,2.93]
[1764129550462,0.04859269,138.14,138.12,2.97665353]
[1764129550857,0.04859269,138.14,138.12,9.49555353]
[1764129551060,0.04859269,138.14,138.13,2.93]
[1764129560372,6.66837492,138.18,138.14,2.99]
[1764129560563,5.32534973,138.17,138.14,2.99]
[1764129560763,5.32534973,138.16,138.14,2.99]
[1764129560972,6.66837492,138.19,138.14,2.99]
[1764129561271,5.32553806,138.18,138.15,2.99]
[1764129561466,5.32553806,138.17,138.15,3.03771486]
[1764129561664,5.32553806,138.16,138.15,3.03771486]
[1764129561866,5.32553806,138.16,138.15,0.04771486]
[1764129564969,8.91310837,138.16,138.1,2.99]
[1764129565273,110.24396603,138.17,138.1,2.99]
[1764129565274,12.00580385,138.15,138.1,2.99]
[1764129565476,5.32553806,138.14,138.1,2.99]
[1764129565671,5.32553806,138.13,138.1,2.99]
[1764129565876,13.19786579,138.16,138.1,2.99]
[1764129566076,0.05553118,138.13,138.1,9.56493021]
[1764129566273,0.05553118,138.13,138.11,2.99]
[1764129566976,0.05553118,138.13,138.11,9.5094]
[1764129567273,0.05553118,138.13,138.12,2.99]
[1764129586391,5.38014736,138.13,138.12,2.99]
[1764129586591,5.38021282,138.13,138.12,2.99]
[1764129590084,0.05553118,138.13,138.12,2.99]
[1764129598190,6.5174,138.16,138.12,2.99]
[1764129598394,5.31551326,138.15,138.12,2.99]
[1764129598592,15.3442361,138.18,138.12,2.99]
[1764129598788,5.31551326,138.17,138.12,2.99]
[1764129599093,5.36408619,138.16,138.14,2.94]
[1764129599295,5.31551326,138.15,138.14,2.94]
[1764129602798,5.31551326,138.15,138.13,0.04628475]
[1764129603097,5.31551326,138.14,138.13,0.04628475]
[1764129603693,5.31551326,138.14,138.09,2.98]
[1764129603894,5.31482042,138.13,138.09,2.98]
[1764129604194,5.31482042,138.12,138.09,2.98]
[1764129604400,10.03487288,138.15,138.09,2.98]
[1764129604588,5.31382427,138.14,138.09,2.98]
[1764129604897,5.36931178,138.13,138.1,3.03453822]
[1764129605100,5.31382427,138.12,138.1,3.03453822]
[1764129605299,6.57418751,138.13,138.1,3.03453822]
[1764129605500,5.31297297,138.12,138.1,3.03453822]
[1764129605797,0.05548751,138.13,138.1,3.03453822]
[1764129609296,0.05548751,138.13,138.12,2.98]
[1764129613003,5.31398749,138.15,138.14,2.98]
[1764129613302,6.68026579,138.19,138.14,2.98]
[1764129613607,5.31152755,138.18,138.14,2.98]
[1764129613802,5.31152755,138.17,138.14,2.98]
[1764129613999,5.31214875,138.19,138.16,2.98]
[1764129614201,13.19496579,138.22,138.16,3.02743216]
[1764129614504,0.04945929,138.19,138.16,3.02743216]
[1764129615311,0.04945929,138.19,138.16,9.54453216]
[1764129615510,0.04945929,138.19,138.17,2.98]
[1764129620308,0.04945929,138.19,138.16,3.15743216]
[1764129620614,5.30145171,138.18,138.16,3.15743216]
[1764129621118,0.04945929,138.19,138.16,3.15743216]
[1764129621709,5.29669536,138.18,138.16,3.15743216]
[1764129621910,5.29643472,138.17,138.16,3.15743216]
[1764129622110,5.29643472,138.18,138.16,3.15743216]
[1764129622313,5.29643472,138.17,138.16,3.15743216]
[1764129622515,5.29643472,138.18,138.16,3.15743216]
[1764129622713,0.04945929,138.19,138.16,0.04743216]
[1764129622912,5.29597862,138.18,138.16,0.04743216]
[1764129623214,5.29597862,138.17,138.16,0.04743216]
[1764129623415,5.29597862,138.18,138.16,0.04743216]
[1764129623616,5.29597862,138.17,138.16,0.04743216]
[1764129623814,5.29597862,138.18,138.16,0.04743216]
[1764129624111,5.29597862,138.17,138.16,3.15743216]
[1764129624316,11.81237862,138.18,138.16,3.15743216]
[1764129624513,5.29597862,138.17,138.16,3.15743216]
[1764129627723,6.5164,138.18,138.16,3.15743216]
[1764129628015,11.81536716,138.18,138.16,3.15743216]
[1764129628612,6.5164,138.18,138.16,3.15743216]
[1764129631726,6.5164,138.18,138.16,0.04743216]
[1764129632118,6.5164,138.18,138.05,3.11]
[1764129632119,101.3949,138.14,138.05,3.11]
[1764129632619,104.73110709,138.17,138.06,3.11]
[1764129632818,5.29833583,138.16,138.07,3.11]
[1764129633018,0.04669436,138.13,138.11,3.11]
[1764129634429,6.5176,138.16,138.11,3.11]
[1764129635421,0.05140716,138.15,138.11,9.6294]
[1764129635627,0.05140716,138.15,138.12,3.11]
[1764129640624,0.00140716,138.15,138.12,3.11]
[1764129640931,5.29898392,138.2,138.12,3.11]
[1764129641131,6.5151,138.21,138.12,3.11]
[1764129641325,5.29830633,138.2,138.12,3.11]
[1764129641520,6.5151,138.21,138.12,3.11]
[1764129641727,0.05078604,138.18,138.15,3.15922738]
[1764129642934,0.05078604,138.18,138.16,3.11]
[1764129646940,5.30163259,138.23,138.19,3.11]
[1764129647134,5.30163259,138.24,138.17,3.11]
[1764129647339,8.23750391,138.23,138.14,2.89]
[1764129647639,5.30163259,138.22,138.14,2.89]
[1764129647836,5.30163259,138.21,138.14,2.89]
[1764129648040,0.04431649,138.19,138.17,2.93636259]
[1764129661347,11.81423754,138.24,138.18,2.89]
[1764129661551,6.5138,138.24,138.18,2.89]
[1764129662239,11.81218697,138.23,138.18,2.89]
[1764129662445,5.29818697,138.22,138.18,2.89]
[1764129663553,5.29818697,138.21,138.18,2.89]
[1764129664048,11.81308697,138.21,138.18,2.89]
[1764129664244,7.17514518,138.24,138.18,2.89]
[1764129664554,5.29818697,138.23,138.2,2.91637364]
[1764129664752,5.29818697,138.22,138.2,2.91637364]
[1764129665052,5.29818697,138.23,138.2,2.91637364]
[1764129665253,5.29818697,138.22,138.2,2.91637364]
[1764129665454,5.29818697,138.23,138.2,2.91637364]
[1764129665655,5.29818697,138.22,138.2,2.91637364]
[1764129665855,5.29818697,138.23,138.2,2.91637364]
[1764129666552,101.2798,138.3,138.2,2.91637364]
[1764129666553,5.29818697,138.22,138.2,2.91637364]
[1764129666746,5.29818697,138.24,138.2,2.9163082]
[1764129666944,5.29818697,138.23,138.2,2.9163082]
[1764129667243,5.29818697,138.24,138.2,2.9163082]
[1764129667449,5.29818697,138.23,138.2,2.9163082]
[1764129667753,5.29818697,138.25,138.2,2.9163082]
[1764129667957,5.29818697,138.24,138.2,2.9163082]
[1764129668254,5.29818697,138.25,138.2,2.9163082]
[1764129668455,1.87695821,138.26,138.2,2.9163082]
[1764129668647,5.29704243,138.25,138.21,2.87]
[1764129668851,1.87695821,138.26,138.21,2.87]
[1764129669160,5.29704243,138.25,138.21,2.87]
[1764129669655,5.29704243,138.24,138.21,2.87]
[1764129669847,5.29704243,138.23,138.21,2.87]
[1764129670045,5.29704243,138.22,138.2,0.0463082]
[1764129670256,5.29704243,138.23,138.2,2.9163082]
[1764129674156,1.87695821,138.25,138.2,2.9163082]
[1764129674359,5.29704243,138.24,138.2,2.9163082]
[1764129674551,5.29704243,138.23,138.2,2.9163082]
[1764129674762,5.29704243,138.24,138.2,2.9163082]
[1764129674945,5.29704243,138.23,138.2,2.9163082]
[1764129675148,5.29704243,138.24,138.2,2.9163082]